Department Family,Entity,Date,Expense Type,Expense Area,Supplier,Transaction Number,Amount,Description,Supplier Postcode,Supplier Type,Expenditure Type
DWP,ILF,10/03/2014,Independent Assessor visits,Social Work,Independent Assessor Costs,145739,504,Assessment of social care needs and recommendation of ILF funding contribution,0,,Programme
DWP,ILF,04/03/2014,Software Licensing,Human Resources,Ceridian Ltd,145586,508.37,Payroll and HR services, E14 9GE,,Administrative
DWP,ILF,12/03/2014,Independent Assessor visits,Social Work,Independent Assessor Costs,145869,516.6,Assessment of social care needs and recommendation of ILF funding contribution,0,,Programme
DWP,ILF,17/03/2014,Technical IT Support,Information & Governance,Phoneix,145953,540,IT Technical Support Service,WF17 9LU,,Administrative
DWP,ILF,03/03/2014,Website Services,Information & Governance,Node4,145505,540,Website services, DE24 8HZ,,Administrative
DWP,ILF,10/03/2014,Legal Costs,Corporate Affairs,Shakespeares,145752,540,"Provision of Legal Service iro debt recovery, human resource, procurement or organisational litigation",0,,Administrative
DWP,ILF,31/03/2014,Independent Assessor visits,Social Work,Independent Assessor Costs,146251,583.65,Assessment of social care needs and recommendation of ILF funding contribution,0,,Programme
DWP,ILF,07/03/2014,General T&S ,Social Work,Redfern Travel Ltd,145689,587.73,Travel and Accomodation bookings,BD1 3AZ,,Administrative
DWP,ILF,25/03/2014,Independent Assessor visits,Social Work,Independent Assessor Costs,146098,591.3,Assessment of social care needs and recommendation of ILF funding contribution,0,,Programme
DWP,ILF,10/03/2014,Independent Assessor visits,Social Work,Independent Assessor Costs,145726,600.25,Assessment of social care needs and recommendation of ILF funding contribution,0,,Programme
DWP,ILF,25/03/2014,Independent Assessor visits,Social Work,Independent Assessor Costs,146106,600.75,Assessment of social care needs and recommendation of ILF funding contribution,0,,Programme
DWP,ILF,10/03/2014,Independent Assessor visits,Social Work,Independent Assessor Costs,145732,603.45,Assessment of social care needs and recommendation of ILF funding contribution,0,,Programme
DWP,ILF,04/03/2014,Independent Assessor visits,Social Work,Independent Assessor Costs,145524,613.8,Assessment of social care needs and recommendation of ILF funding contribution,0,,Programme
DWP,ILF,31/03/2014,Independent Assessor visits,Social Work,Independent Assessor Costs,146251,662.75,Assessment of social care needs and recommendation of ILF funding contribution,0,,Programme
DWP,ILF,25/03/2014,Independent Assessor visits,Social Work,Independent Assessor Costs,146085,681.75,Assessment of social care needs and recommendation of ILF funding contribution,0,,Programme
DWP,ILF,31/03/2014,Independent Assessor visits,Social Work,Independent Assessor Costs,146251,694.35,Assessment of social care needs and recommendation of ILF funding contribution,0,,Programme
DWP,ILF,21/03/2014,Stationery & Supplies,Facilities,Banner Business Services,146043,698.34,Stationary and Supplies,NR3 1QU,,Administrative
DWP,ILF,25/03/2014,Independent Assessor visits,Social Work,Independent Assessor Costs,146107,701.55,Assessment of social care needs and recommendation of ILF funding contribution,0,,Programme
DWP,ILF,25/03/2014,Independent Assessor visits,Social Work,Independent Assessor Costs,146092,702,Assessment of social care needs and recommendation of ILF funding contribution,0,,Programme
DWP,ILF,17/03/2014,Independent Assessor visits,Social Work,Independent Assessor Costs,145919,705.6,Assessment of social care needs and recommendation of ILF funding contribution,0,,Programme
DWP,ILF,06/03/2014,Independent Assessor visits,Social Work,Independent Assessor Costs,145675,706.5,Assessment of social care needs and recommendation of ILF funding contribution,0,,Programme
DWP,ILF,25/03/2014,Independent Assessor visits,Social Work,Independent Assessor Costs,146094,709.5,Assessment of social care needs and recommendation of ILF funding contribution,0,,Programme
DWP,ILF,10/03/2014,Independent Assessor visits,Social Work,Independent Assessor Costs,145746,715.5,Assessment of social care needs and recommendation of ILF funding contribution,0,,Programme
DWP,ILF,31/03/2014,Independent Assessor visits,Social Work,Independent Assessor Costs,146258,715.95,Assessment of social care needs and recommendation of ILF funding contribution,0,,Programme
DWP,ILF,11/03/2014,Independent Assessor visits,Social Work,Independent Assessor Costs,145784,773.85,Assessment of social care needs and recommendation of ILF funding contribution,0,,Programme
DWP,ILF,10/03/2014,Independent Assessor visits,Social Work,Independent Assessor Costs,145731,790.2,Assessment of social care needs and recommendation of ILF funding contribution,0,,Programme
DWP,ILF,17/03/2014,Independent Assessor visits,Social Work,Independent Assessor Costs,145926,803.25,Assessment of social care needs and recommendation of ILF funding contribution,0,,Programme
DWP,ILF,07/03/2014,Other Training Costs,Human Resources,Redfern Travel Ltd,145689,807.19,Travel and Accomodation bookings,BD1 3AZ,,Administrative
DWP,ILF,14/03/2014,Information Security,Information & Governance,Copyright Licensing Agency,145905,809.45,Annual licence for the CLA licence,EC1N 8TS,,Administrative
DWP,ILF,04/03/2014,Independent Assessor visits,Social Work,Independent Assessor Costs,145525,836,Assessment of social care needs and recommendation of ILF funding contribution,0,,Programme
DWP,ILF,05/03/2014,Other Prepayments,Central,Data Voice & Video Sol,145638,837.6,Engineer work for Government Secure Internet, SK1 3TZ,,Administrative
DWP,ILF,13/03/2014,Other Prepayments,Central,Data Voice & Video Sol,145892,837.6,Engineer work for Government Secure Internet, SK1 3TZ,,Administrative
DWP,ILF,31/03/2014,Independent Assessor visits,Social Work,Independent Assessor Costs,146261,844.65,Assessment of social care needs and recommendation of ILF funding contribution,0,,Programme
DWP,ILF,04/03/2014,Independent Assessor visits,Social Work,Independent Assessor Costs,145517,846.9,Assessment of social care needs and recommendation of ILF funding contribution,0,,Programme
DWP,ILF,17/03/2014,Independent Assessor visits,Social Work,Independent Assessor Costs,145930,859.5,Assessment of social care needs and recommendation of ILF funding contribution,0,,Programme
DWP,ILF,25/03/2014,Independent Assessor visits,Social Work,Independent Assessor Costs,146102,863.1,Assessment of social care needs and recommendation of ILF funding contribution,0,,Programme
DWP,ILF,26/03/2014,Information Security,Information & Governance,Data Voice & Video Sol,146165,886.15,Engineer work for Government Secure Internet, SK1 3TZ,,Administrative
DWP,ILF,31/03/2014,Technical IT Support,Information & Governance,Desk Top Publishing Group,146249,900,Proactive Support Service, LS10 1RJ,,Administrative
DWP,ILF,31/03/2014,Technical IT Support,Information & Governance,Desk Top Publishing Group,146250,900,Proactive Support Service, LS10 1RJ,,Administrative
DWP,ILF,25/03/2014,Independent Assessor visits,Social Work,Independent Assessor Costs,146097,924.88,Assessment of social care needs and recommendation of ILF funding contribution,0,,Programme
DWP,ILF,31/03/2014,Independent Assessor visits,Social Work,Independent Assessor Costs,146251,927.1,Assessment of social care needs and recommendation of ILF funding contribution,0,,Programme
DWP,ILF,10/03/2014,Independent Assessor visits,Social Work,Independent Assessor Costs,145750,948.15,Assessment of social care needs and recommendation of ILF funding contribution,0,,Programme
DWP,ILF,04/03/2014,Independent Assessor visits,Social Work,Independent Assessor Costs,145512,950.4,Assessment of social care needs and recommendation of ILF funding contribution,0,,Programme
DWP,ILF,31/03/2014,Independent Assessor visits,Social Work,Independent Assessor Costs,146251,963.9,Assessment of social care needs and recommendation of ILF funding contribution,0,,Programme
DWP,ILF,25/03/2014,Independent Assessor visits,Social Work,Independent Assessor Costs,146096,972.45,Assessment of social care needs and recommendation of ILF funding contribution,0,,Programme
DWP,ILF,04/03/2014,Utilities,Facilities,Land Securities Trillium,145576,981.55,"Building lease,maintenance and utilities", LS11 9DX,,Administrative
DWP,ILF,17/03/2014,Independent Assessor visits,Social Work,Independent Assessor Costs,145929,983.7,Assessment of social care needs and recommendation of ILF funding contribution,0,,Programme
DWP,ILF,10/03/2014,Independent Assessor visits,Social Work,Independent Assessor Costs,145735,986.55,Assessment of social care needs and recommendation of ILF funding contribution,0,,Programme
DWP,ILF,04/03/2014,Independent Assessor visits,Social Work,Independent Assessor Costs,145515,988.2,Assessment of social care needs and recommendation of ILF funding contribution,0,,Programme
DWP,ILF,31/03/2014,Independent Assessor visits,Social Work,Independent Assessor Costs,146256,1002.6,Assessment of social care needs and recommendation of ILF funding contribution,0,,Programme
DWP,ILF,12/03/2014,Independent Assessor visits,Social Work,Independent Assessor Costs,145870,1008.9,Assessment of social care needs and recommendation of ILF funding contribution,0,,Programme
DWP,ILF,31/03/2014,Independent Assessor visits,Social Work,Independent Assessor Costs,146251,1015.2,Assessment of social care needs and recommendation of ILF funding contribution,0,,Programme
DWP,ILF,13/03/2014,Other Prepayments,Central,Data Voice & Video Sol,145891,1023.5,Engineer work for Government Secure Internet, SK1 3TZ,,Administrative
DWP,ILF,04/03/2014,Independent Assessor visits,Social Work,Independent Assessor Costs,145518,1047.6,Assessment of social care needs and recommendation of ILF funding contribution,0,,Programme
DWP,ILF,10/03/2014,Independent Assessor visits,Social Work,Independent Assessor Costs,145730,1051.2,Assessment of social care needs and recommendation of ILF funding contribution,0,,Programme
DWP,ILF,10/03/2014,Independent Assessor visits,Social Work,Independent Assessor Costs,145745,1062.9,Assessment of social care needs and recommendation of ILF funding contribution,0,,Programme
DWP,ILF,04/03/2014,Software Licensing,Human Resources,Ceridian Ltd,145585,1083.67,Payroll and HR services, E14 9GE,,Administrative
DWP,ILF,25/03/2014,Independent Assessor visits,Social Work,Independent Assessor Costs,146095,1108.8,Assessment of social care needs and recommendation of ILF funding contribution,0,,Programme
DWP,ILF,04/03/2014,Independent Assessor visits,Social Work,Independent Assessor Costs,145521,1130.85,Assessment of social care needs and recommendation of ILF funding contribution,0,,Programme
DWP,ILF,03/03/2014,Misc IT Costs,Information & Governance,XMA Ltd,145494,1139.04,Printer Toner Cartidges,NG11 7EP,,Administrative
DWP,ILF,31/03/2014,Independent Assessor visits,Social Work,Independent Assessor Costs,146254,1154.25,Assessment of social care needs and recommendation of ILF funding contribution,0,,Programme
DWP,ILF,25/03/2014,Misc IT Costs,Information & Governance,XMA Ltd,146078,1159,Printer Toner Cartidges,NG11 7EP,,Administrative
DWP,ILF,17/03/2014,Independent Assessor visits,Social Work,Independent Assessor Costs,145923,1191.15,Assessment of social care needs and recommendation of ILF funding contribution,0,,Programme
DWP,ILF,04/03/2014,Independent Assessor visits,Social Work,Independent Assessor Costs,145520,1192.6,Assessment of social care needs and recommendation of ILF funding contribution,0,,Programme
DWP,ILF,04/03/2014,Independent Assessor visits,Social Work,Independent Assessor Costs,145523,1198.35,Assessment of social care needs and recommendation of ILF funding contribution,0,,Programme
DWP,ILF,17/03/2014,Independent Assessor visits,Social Work,Independent Assessor Costs,145927,1203.3,Assessment of social care needs and recommendation of ILF funding contribution,0,,Programme
DWP,ILF,17/03/2014,Independent Assessor visits,Social Work,Independent Assessor Costs,145926,1208.7,Assessment of social care needs and recommendation of ILF funding contribution,0,,Programme
DWP,ILF,10/03/2014,Independent Assessor visits,Social Work,Independent Assessor Costs,145751,1233.9,Assessment of social care needs and recommendation of ILF funding contribution,0,,Programme
DWP,ILF,25/03/2014,Independent Assessor visits,Social Work,Independent Assessor Costs,146089,1242,Assessment of social care needs and recommendation of ILF funding contribution,0,,Programme
DWP,ILF,10/03/2014,Independent Assessor visits,Social Work,Independent Assessor Costs,145737,1270.8,Assessment of social care needs and recommendation of ILF funding contribution,0,,Programme
DWP,ILF,03/03/2014,Misc IT Costs,Information & Governance,XMA Ltd,145493,1274.15,Printer Toner Cartidges,NG11 7EP,,Administrative
DWP,ILF,17/03/2014,Independent Assessor visits,Social Work,Independent Assessor Costs,145928,1275.75,Assessment of social care needs and recommendation of ILF funding contribution,0,,Programme
DWP,ILF,10/03/2014,Independent Assessor visits,Social Work,Independent Assessor Costs,145744,1278.9,Assessment of social care needs and recommendation of ILF funding contribution,0,,Programme
DWP,ILF,12/03/2014,Independent Assessor visits,Social Work,Independent Assessor Costs,145871,1294.65,Assessment of social care needs and recommendation of ILF funding contribution,0,,Programme
DWP,ILF,10/03/2014,Independent Assessor visits,Social Work,Independent Assessor Costs,145742,1296.55,Assessment of social care needs and recommendation of ILF funding contribution,0,,Programme
DWP,ILF,25/03/2014,Independent Assessor visits,Social Work,Independent Assessor Costs,146087,1299.6,Assessment of social care needs and recommendation of ILF funding contribution,0,,Programme
DWP,ILF,10/03/2014,Independent Assessor visits,Social Work,Independent Assessor Costs,145722,1316.25,Assessment of social care needs and recommendation of ILF funding contribution,0,,Programme
DWP,ILF,17/03/2014,Independent Assessor visits,Social Work,Independent Assessor Costs,145922,1327.5,Assessment of social care needs and recommendation of ILF funding contribution,0,,Programme
DWP,ILF,10/03/2014,Independent Assessor visits,Social Work,Independent Assessor Costs,145747,1348.2,Assessment of social care needs and recommendation of ILF funding contribution,0,,Programme
DWP,ILF,10/03/2014,Independent Assessor visits,Social Work,Independent Assessor Costs,145720,1371.6,Assessment of social care needs and recommendation of ILF funding contribution,0,,Programme
DWP,ILF,31/03/2014,Independent Assessor visits,Social Work,Independent Assessor Costs,146276,1381.95,Assessment of social care needs and recommendation of ILF funding contribution,0,,Programme
DWP,ILF,03/03/2014,Business Continuity,Information & Governance,Node4,145505,1410,Website services, DE24 8HZ,,Administrative
DWP,ILF,04/03/2014,Rent & Facilities Lease,Facilities,Land Securities Trillium,145580,1410.71,"Building lease,maintenance and utilities", LS11 9DX,,Administrative
DWP,ILF,10/03/2014,Independent Assessor visits,Social Work,Independent Assessor Costs,145719,1417.25,Assessment of social care needs and recommendation of ILF funding contribution,0,,Programme
DWP,ILF,12/03/2014,Independent Assessor visits,Social Work,Independent Assessor Costs,145872,1459.8,Assessment of social care needs and recommendation of ILF funding contribution,0,,Programme
DWP,ILF,04/03/2014,Independent Assessor visits,Social Work,Independent Assessor Costs,145513,1516.7,Assessment of social care needs and recommendation of ILF funding contribution,0,,Programme
DWP,ILF,31/03/2014,Independent Assessor visits,Social Work,Independent Assessor Costs,146257,1551.5,Assessment of social care needs and recommendation of ILF funding contribution,0,,Programme
DWP,ILF,04/03/2014,Independent Assessor visits,Social Work,Independent Assessor Costs,145516,1555.4,Assessment of social care needs and recommendation of ILF funding contribution,0,,Programme
DWP,ILF,10/03/2014,Independent Assessor visits,Social Work,Independent Assessor Costs,145740,1589.4,Assessment of social care needs and recommendation of ILF funding contribution,0,,Programme
DWP,ILF,31/03/2014,Independent Assessor visits,Social Work,Independent Assessor Costs,146252,1678.5,Assessment of social care needs and recommendation of ILF funding contribution,0,,Programme
DWP,ILF,04/03/2014,Independent Assessor visits,Social Work,Independent Assessor Costs,145527,1679.4,Assessment of social care needs and recommendation of ILF funding contribution,0,,Programme
DWP,ILF,17/03/2014,Independent Assessor visits,Social Work,Independent Assessor Costs,145932,1692.9,Assessment of social care needs and recommendation of ILF funding contribution,0,,Programme
DWP,ILF,12/03/2014,Independent Assessor visits,Social Work,Independent Assessor Costs,145874,1707.3,Assessment of social care needs and recommendation of ILF funding contribution,0,,Programme
DWP,ILF,25/03/2014,Independent Assessor visits,Social Work,Independent Assessor Costs,146108,1741.05,Assessment of social care needs and recommendation of ILF funding contribution,0,,Programme
DWP,ILF,10/03/2014,Independent Assessor visits,Social Work,Independent Assessor Costs,145743,1743.3,Assessment of social care needs and recommendation of ILF funding contribution,0,,Programme
DWP,ILF,10/03/2014,Independent Assessor visits,Social Work,Independent Assessor Costs,145729,1758.15,Assessment of social care needs and recommendation of ILF funding contribution,0,,Programme
DWP,ILF,10/03/2014,Independent Assessor visits,Social Work,Independent Assessor Costs,145723,1795.5,Assessment of social care needs and recommendation of ILF funding contribution,0,,Programme
DWP,ILF,25/03/2014,Independent Assessor visits,Social Work,Independent Assessor Costs,146104,1829.25,Assessment of social care needs and recommendation of ILF funding contribution,0,,Programme
DWP,ILF,10/03/2014,Independent Assessor visits,Social Work,Independent Assessor Costs,145718,1860.75,Assessment of social care needs and recommendation of ILF funding contribution,0,,Programme
DWP,ILF,17/03/2014,Independent Assessor visits,Social Work,Independent Assessor Costs,145934,1878.3,Assessment of social care needs and recommendation of ILF funding contribution,0,,Programme
DWP,ILF,05/03/2014,Other Prepayments,Central,Data Voice & Video Sol,145636,1915.68,Engineer work for Government Secure Internet, SK1 3TZ,,Administrative
DWP,ILF,04/03/2014,Independent Assessor visits,Social Work,Independent Assessor Costs,145522,1931.4,Assessment of social care needs and recommendation of ILF funding contribution,0,,Programme
DWP,ILF,04/03/2014,Independent Assessor visits,Social Work,Independent Assessor Costs,145519,1967.4,Assessment of social care needs and recommendation of ILF funding contribution,0,,Programme
DWP,ILF,25/03/2014,Independent Assessor visits,Social Work,Independent Assessor Costs,146100,1984.95,Assessment of social care needs and recommendation of ILF funding contribution,0,,Programme
DWP,ILF,25/03/2014,Independent Assessor visits,Social Work,Independent Assessor Costs,146105,2024.55,Assessment of social care needs and recommendation of ILF funding contribution,0,,Programme
DWP,ILF,10/03/2014,Independent Assessor visits,Social Work,Independent Assessor Costs,145736,2034.45,Assessment of social care needs and recommendation of ILF funding contribution,0,,Programme
DWP,ILF,25/03/2014,Independent Assessor visits,Social Work,Independent Assessor Costs,146103,2053.8,Assessment of social care needs and recommendation of ILF funding contribution,0,,Programme
DWP,ILF,25/03/2014,Independent Assessor visits,Social Work,Independent Assessor Costs,146088,2079.9,Assessment of social care needs and recommendation of ILF funding contribution,0,,Programme
DWP,ILF,10/03/2014,Independent Assessor visits,Social Work,Independent Assessor Costs,145726,2081.5,Assessment of social care needs and recommendation of ILF funding contribution,0,,Programme
DWP,ILF,17/03/2014,Independent Assessor visits,Social Work,Independent Assessor Costs,145924,2087.55,Assessment of social care needs and recommendation of ILF funding contribution,0,,Programme
DWP,ILF,10/03/2014,Independent Assessor visits,Social Work,Independent Assessor Costs,145717,2097,Assessment of social care needs and recommendation of ILF funding contribution,0,,Programme
DWP,ILF,17/03/2014,Independent Assessor visits,Social Work,Independent Assessor Costs,145924,2124,Assessment of social care needs and recommendation of ILF funding contribution,0,,Programme
DWP,ILF,10/03/2014,Independent Assessor visits,Social Work,Independent Assessor Costs,145735,2136.9,Assessment of social care needs and recommendation of ILF funding contribution,0,,Programme
DWP,ILF,10/03/2014,Independent Assessor visits,Social Work,Independent Assessor Costs,145733,2137.5,Assessment of social care needs and recommendation of ILF funding contribution,0,,Programme
DWP,ILF,31/03/2014,Technical IT Support,Information & Governance,Phoneix,146284,2152.8,IT Technical Support Service,WF17 9LU,,Administrative
DWP,ILF,10/03/2014,Independent Assessor visits,Social Work,Independent Assessor Costs,145728,2169.45,Assessment of social care needs and recommendation of ILF funding contribution,0,,Programme
DWP,ILF,04/03/2014,Independent Assessor visits,Social Work,Independent Assessor Costs,145511,2178.15,Assessment of social care needs and recommendation of ILF funding contribution,0,,Programme
DWP,ILF,10/03/2014,Independent Assessor visits,Social Work,Independent Assessor Costs,145734,2183.85,Assessment of social care needs and recommendation of ILF funding contribution,0,,Programme
DWP,ILF,11/03/2014,Independent Assessor visits,Social Work,Independent Assessor Costs,145828,2185.65,Assessment of social care needs and recommendation of ILF funding contribution,0,,Programme
DWP,ILF,12/03/2014,Independent Assessor visits,Social Work,Independent Assessor Costs,145875,2211.75,Assessment of social care needs and recommendation of ILF funding contribution,0,,Programme
DWP,ILF,31/03/2014,Independent Assessor visits,Social Work,Independent Assessor Costs,146259,2263.5,Assessment of social care needs and recommendation of ILF funding contribution,0,,Programme
DWP,ILF,04/03/2014,Independent Assessor visits,Social Work,Independent Assessor Costs,145510,2380.05,Assessment of social care needs and recommendation of ILF funding contribution,0,,Programme
DWP,ILF,10/03/2014,Independent Assessor visits,Social Work,Independent Assessor Costs,145741,2380.35,Assessment of social care needs and recommendation of ILF funding contribution,0,,Programme
DWP,ILF,04/03/2014,Independent Assessor visits,Social Work,Independent Assessor Costs,145526,2439.9,Assessment of social care needs and recommendation of ILF funding contribution,0,,Programme
DWP,ILF,17/03/2014,Independent Assessor visits,Social Work,Independent Assessor Costs,145921,2450.25,Assessment of social care needs and recommendation of ILF funding contribution,0,,Programme
DWP,ILF,10/03/2014,Independent Assessor visits,Social Work,Independent Assessor Costs,145739,2468,Assessment of social care needs and recommendation of ILF funding contribution,0,,Programme
DWP,ILF,10/03/2014,Independent Assessor visits,Social Work,Independent Assessor Costs,145748,2489.4,Assessment of social care needs and recommendation of ILF funding contribution,0,,Programme
DWP,ILF,10/03/2014,Independent Assessor visits,Social Work,Independent Assessor Costs,145749,2495.16,Assessment of social care needs and recommendation of ILF funding contribution,0,,Programme
DWP,ILF,25/03/2014,Independent Assessor visits,Social Work,Independent Assessor Costs,146088,2501.1,Assessment of social care needs and recommendation of ILF funding contribution,0,,Programme
DWP,ILF,25/03/2014,Independent Assessor visits,Social Work,Independent Assessor Costs,146099,2511,Assessment of social care needs and recommendation of ILF funding contribution,0,,Programme
DWP,ILF,25/03/2014,Independent Assessor visits,Social Work,Independent Assessor Costs,146090,2524.05,Assessment of social care needs and recommendation of ILF funding contribution,0,,Programme
DWP,ILF,17/03/2014,Independent Assessor visits,Social Work,Independent Assessor Costs,145920,2549.25,Assessment of social care needs and recommendation of ILF funding contribution,0,,Programme
DWP,ILF,03/03/2014,Software Licensing,Information & Governance,Probrand,145504,2589.84,IT equipment and software licencing, B1 3BP,,Administrative
DWP,ILF,25/03/2014,Independent Assessor visits,Social Work,Independent Assessor Costs,146091,2656.8,Assessment of social care needs and recommendation of ILF funding contribution,0,,Programme
DWP,ILF,26/03/2014,Trustee Expenses,Corporate Affairs,Trustee Expenses,146184,2678.7,"Travel, Subsitence or general expenses incurred by trustees during the normal course of duty",0,,Administrative
DWP,ILF,12/03/2014,Independent Assessor visits,Social Work,Independent Assessor Costs,145868,2763.59,Assessment of social care needs and recommendation of ILF funding contribution,0,,Programme
DWP,ILF,12/03/2014,Independent Assessor visits,Social Work,Independent Assessor Costs,145873,2830.5,Assessment of social care needs and recommendation of ILF funding contribution,0,,Programme
DWP,ILF,21/03/2014,Misc IT Costs,Information & Governance,Ricoh UK Ltd,146045,2850.62,Service Charge for Printing Equipment, TW13 7HG,,Administrative
DWP,ILF,17/03/2014,Legal Costs,Payment Security,Maclay Murray & Spens Solicitors,145952,3003.6,Provision of Legal Service iro debt recovery, G2 5NL,,Administrative
DWP,ILF,25/03/2014,Independent Assessor visits,Social Work,Independent Assessor Costs,146086,3146,Assessment of social care needs and recommendation of ILF funding contribution,0,,Programme
DWP,ILF,31/03/2014,Utilities,Facilities,DWP,146286,3505.22,Business subscription iro Grant Recovery, FY5 3TA,,Administrative
DWP,ILF,28/03/2014,FE Assistance,Human Resources,DWP,146225,3552.78,Business subscription iro Grant Recovery, FY5 3TA,,Administrative
DWP,ILF,03/03/2014,Bespoke Software (Cost),Central,Dynamic Data Systems Ltd,145502,5676,Bespoke software development, NG16 1RL,,Administrative
DWP,ILF,26/03/2014,Training courses/Seminars,Human Resources,Reed Business Info Ltd,146187,5991.6,advertisement fees, RH16 3DH,,Administrative
DWP,ILF,17/03/2014,Additional Facilities,Facilities,TNT UK Ltd,145954,7917.92,Courier service, BL4 9AR,,Administrative
DWP,ILF,25/03/2014,Postage,Facilities,Royal Mail,146080,10820.75,Postal services, PE4 5PG,,Administrative
DWP,ILF,03/03/2014,Technical IT Support,Information & Governance,Phoneix,145501,14392.8,IT Technical Support Service,WF17 9LU,,Administrative
DWP,ILF,03/03/2014,Technical IT Support,Information & Governance,Phoneix,145500,16207.2,IT Technical Support Service,WF17 9LU,,Administrative
DWP,ILF,04/03/2014,Rent & Facilities Lease,Facilities,Land Securities Trillium,145583,69371.29,"Building lease,maintenance and utilities", LS11 9DX,,Administrative
